[Event "Titled Tuesday Blitz December 06 Early 2022"]
[White "Agasarov, Benik"]
[Black "Corrales Jimenez, Fidel"]
[WhiteFideId "13314823"]
[BlackFideId "3506690"]
[WhiteElo "2179"]
[BlackElo "2541"]
[Result "1-0"]
[Round "08"]
[TimeControl "180+1"]
[Date "2022.12.06"]
[WhiteClock "0:00:06"]
[BlackClock "0:00:39"]

1. e4 {[%clk 0:03:00]}  c5 {[%clk 0:02:45]} 2. Nf3 {[%clk 0:03:00]}  d6 {[%clk 0:02:45]} 3. d4 {[%clk 0:02:54]}  cxd4 {[%clk 0:02:46]} 4. Nxd4 {[%clk 0:02:54]}  Nf6 {[%clk 0:02:46]} 5. Nc3 {[%clk 0:02:54]}  a6 {[%clk 0:02:47]} 6. Bg5 {[%clk 0:02:53]}  e6 {[%clk 0:02:47]} 7. f4 {[%clk 0:02:53]}  h6 {[%clk 0:02:47]} 8. Bh4 {[%clk 0:02:52]}  Nbd7 {[%clk 0:02:46]} 9. Qf3 {[%clk 0:02:48]}  Be7 {[%clk 0:02:46]} 10. O-O-O {[%clk 0:02:47]}  g5 {[%clk 0:02:46]} 11. fxg5 {[%clk 0:02:40]}  Ne5 {[%clk 0:02:47]} 12. gxf6 {[%clk 0:02:32]}  Nxf3 {[%clk 0:02:41]} 13. fxe7 {[%clk 0:02:32]}  Qa5 {[%clk 0:02:34]} 14. gxf3 {[%clk 0:02:29]}  b5 {[%clk 0:02:32]} 15. Ndxb5 {[%clk 0:01:58]}  axb5 {[%clk 0:02:31]} 16. Bxb5+ {[%clk 0:01:58]}  Bd7 {[%clk 0:02:30]} 17. Rxd6 {[%clk 0:01:59]}  Ra7 {[%clk 0:01:38]} 18. Rhd1 {[%clk 0:01:57]}  f6 {[%clk 0:01:33]} 19. Bxf6 {[%clk 0:01:47]}  Bxb5 {[%clk 0:01:33]} 20. Rd8+ {[%clk 0:01:46]}  Kf7 {[%clk 0:01:33]} 21. Rxh8 {[%clk 0:01:26]}  Kxf6 {[%clk 0:01:21]} 22. Nxb5 {[%clk 0:01:06]}  Rxe7 {[%clk 0:01:19]} 23. Nc3 {[%clk 0:00:40]}  Qg5+ {[%clk 0:01:20]} 24. Kb1 {[%clk 0:00:39]}  Qg2 {[%clk 0:01:20]} 25. Rxh6+ {[%clk 0:00:38]}  Kg7 {[%clk 0:01:18]} 26. Rh4 {[%clk 0:00:36]}  Qxf3 {[%clk 0:01:04]} 27. Rg1+ {[%clk 0:00:36]}  Kf6 {[%clk 0:01:02]} 28. a4 {[%clk 0:00:21]}  Qf2 {[%clk 0:00:59]} 29. Rh6+ {[%clk 0:00:14]}  Ke5 {[%clk 0:00:59]} 30. Rh5+ {[%clk 0:00:14]}  Kf4 {[%clk 0:00:53]} 31. Rd1 {[%clk 0:00:11]}  Rb7 {[%clk 0:00:52]} 32. Rb5 {[%clk 0:00:10]}  Rc7 {[%clk 0:00:52]} 33. Rb8 {[%clk 0:00:09]}  Qxh2 {[%clk 0:00:50]} 34. Rf8+ {[%clk 0:00:09]}  Ke5 {[%clk 0:00:50]} 35. Re8 {[%clk 0:00:08]}  Qh5 {[%clk 0:00:49]} 36. Rd5+ {[%clk 0:00:08]}  Kf6 {[%clk 0:00:44]} 37. Rxh5 {[%clk 0:00:09]}  Rg7 {[%clk 0:00:37]} 38. Rh6+ {[%clk 0:00:09]}  Kg5 {[%clk 0:00:38]} 39. Rexe6 {[%clk 0:00:09]}  Rb7 {[%clk 0:00:39]} 40. Reg6+ {[%clk 0:00:09]}  Kf4 {[%clk 0:00:39]} 41. Rh4+ {[%clk 0:00:10]}  Ke3 {[%clk 0:00:39]} 42. Nd5+ {[%clk 0:00:09]}  Kd4 {[%clk 0:00:39]} 43. c3+ {[%clk 0:00:08]}  Kc4 {[%clk 0:00:39]} 44. Rc6+ {[%clk 0:00:07]}  Kb3 {[%clk 0:00:39]} 45. Rb6+ {[%clk 0:00:07]}  Kxa4 {[%clk 0:00:37]} 46. Rxb7 {[%clk 0:00:07]}  Ka5 {[%clk 0:00:38]} 47. Rh8 {[%clk 0:00:06]}  Ka4 {[%clk 0:00:39]} 48. Ra8# {[%clk 0:00:06]} 1-0


[Site "https://www.chess.com"]

[Event "Titled Tuesday Blitz December 06 Early 2022"]
[White "Aradhya, Garg"]
[Black "Kim, Sergey"]
[WhiteFideId "25006746"]
[BlackFideId "13700570"]
[WhiteElo "2278"]
[BlackElo "2624"]
[Result "1-0"]
[Round "08"]
[TimeControl "180+1"]
[Date "2022.12.07"]
[WhiteClock "0:01:13"]
[BlackClock "0:00:28"]

1. d4 {[%clk 0:03:00]}  Nf6 {[%clk 0:02:59]} 2. c4 {[%clk 0:03:01]}  g6 {[%clk 0:02:59]} 3. Nf3 {[%clk 0:03:00]}  Bg7 {[%clk 0:02:59]} 4. g3 {[%clk 0:03:00]}  d6 {[%clk 0:03:00]} 5. Bg2 {[%clk 0:03:00]}  O-O {[%clk 0:03:00]} 6. Nc3 {[%clk 0:03:01]}  Nbd7 {[%clk 0:03:00]} 7. O-O {[%clk 0:03:01]}  e5 {[%clk 0:03:00]} 8. h3 {[%clk 0:03:00]}  exd4 {[%clk 0:02:59]} 9. Nxd4 {[%clk 0:03:01]}  Re8 {[%clk 0:03:00]} 10. b3 {[%clk 0:02:55]}  Nc5 {[%clk 0:03:00]} 11. Bb2 {[%clk 0:02:55]}  c6 {[%clk 0:03:00]} 12. Rc1 {[%clk 0:02:51]}  Qe7 {[%clk 0:03:00]} 13. Re1 {[%clk 0:02:49]}  Nce4 {[%clk 0:02:59]} 14. e3 {[%clk 0:02:45]}  h5 {[%clk 0:02:55]} 15. Qc2 {[%clk 0:02:40]}  a5 {[%clk 0:02:40]} 16. Na4 {[%clk 0:02:36]}  Qc7 {[%clk 0:02:29]} 17. c5 {[%clk 0:02:32]}  d5 {[%clk 0:02:26]} 18. Nb6 {[%clk 0:02:25]}  Rb8 {[%clk 0:02:23]} 19. a3 {[%clk 0:02:21]}  h4 {[%clk 0:02:22]} 20. gxh4 {[%clk 0:02:20]}  Qe7 {[%clk 0:02:09]} 21. b4 {[%clk 0:02:10]}  axb4 {[%clk 0:02:08]} 22. axb4 {[%clk 0:02:11]}  Nh5 {[%clk 0:02:07]} 23. Nf3 {[%clk 0:02:09]}  Bf5 {[%clk 0:02:02]} 24. Bxg7 {[%clk 0:02:07]}  Nxg7 {[%clk 0:01:58]} 25. Qb2 {[%clk 0:02:07]}  Qe6 {[%clk 0:01:50]} 26. Nd4 {[%clk 0:01:53]}  Qe7 {[%clk 0:01:46]} 27. Nf3 {[%clk 0:01:53]}  Qe6 {[%clk 0:01:46]} 28. Kh2 {[%clk 0:01:48]}  Qe7 {[%clk 0:01:33]} 29. b5 {[%clk 0:01:44]}  Ne6 {[%clk 0:01:28]} 30. Qe5 {[%clk 0:01:30]}  N6xc5 {[%clk 0:01:25]} 31. Qxe7 {[%clk 0:01:29]}  Rxe7 {[%clk 0:01:24]} 32. Re2 {[%clk 0:01:26]}  Nd3 {[%clk 0:01:21]} 33. Rcc2 {[%clk 0:01:26]}  Nb4 {[%clk 0:01:09]} 34. Rb2 {[%clk 0:01:20]}  Nd3 {[%clk 0:01:09]} 35. Rbc2 {[%clk 0:01:20]}  Nb4 {[%clk 0:01:09]} 36. Rb2 {[%clk 0:01:20]}  Nd3 {[%clk 0:01:09]} 37. Ra2 {[%clk 0:01:18]}  Nc3 {[%clk 0:01:06]} 38. Nd4 {[%clk 0:01:16]}  Nxe2 {[%clk 0:00:57]} 39. Rxe2 {[%clk 0:01:16]}  Be4 {[%clk 0:00:49]} 40. f3 {[%clk 0:01:15]}  Bf5 {[%clk 0:00:48]} 41. bxc6 {[%clk 0:01:16]}  Ne5 {[%clk 0:00:40]} 42. Nxd5 {[%clk 0:01:15]}  Ree8 {[%clk 0:00:36]} 43. c7 {[%clk 0:01:15]}  Ra8 {[%clk 0:00:36]} 44. Nf6+ {[%clk 0:01:15]}  Kf8 {[%clk 0:00:36]} 45. Nxe8 {[%clk 0:01:15]}  Kxe8 {[%clk 0:00:36]} 46. Nxf5 {[%clk 0:01:15]}  gxf5 {[%clk 0:00:36]} 47. f4 {[%clk 0:01:15]}  Nc6 {[%clk 0:00:33]} 48. Rb2 {[%clk 0:01:15]}  Na5 {[%clk 0:00:31]} 49. Rxb7 {[%clk 0:01:14]}  Kd7 {[%clk 0:00:28]} 50. Rb8 {[%clk 0:01:13]} 1-0


[Site "https://www.chess.com"]

[Event "Titled Tuesday Blitz December 06 Early 2022"]
[White "Averjanov, Alexey"]
[Black "Martin, Lewis"]
[WhiteFideId "14109867"]
[BlackFideId "410551"]
[WhiteElo "2694"]
[BlackElo "2145"]
[Result "1-0"]
[Round "08"]
[TimeControl "180+1"]
[Date "2022.12.07"]
[WhiteClock "0:01:55"]
[BlackClock "0:00:06"]

1. d4 {[%clk 0:03:00]}  d5 {[%clk 0:02:49]} 2. c4 {[%clk 0:03:00]}  c6 {[%clk 0:02:49]} 3. e3 {[%clk 0:03:00]}  Nf6 {[%clk 0:02:48]} 4. Bd3 {[%clk 0:03:00]}  dxc4 {[%clk 0:02:44]} 5. Bxc4 {[%clk 0:03:00]}  b5 {[%clk 0:02:33]} 6. Bd3 {[%clk 0:03:00]}  e6 {[%clk 0:02:28]} 7. Nf3 {[%clk 0:03:00]}  Be7 {[%clk 0:02:27]} 8. O-O {[%clk 0:03:00]}  O-O {[%clk 0:02:27]} 9. a4 {[%clk 0:03:00]}  b4 {[%clk 0:02:18]} 10. b3 {[%clk 0:03:00]}  Nbd7 {[%clk 0:02:16]} 11. Bb2 {[%clk 0:03:01]}  Bb7 {[%clk 0:02:15]} 12. Nbd2 {[%clk 0:03:01]}  c5 {[%clk 0:02:15]} 13. Nc4 {[%clk 0:03:01]}  cxd4 {[%clk 0:02:11]} 14. Bxd4 {[%clk 0:02:59]}  Nc5 {[%clk 0:02:07]} 15. Be2 {[%clk 0:02:58]}  Nce4 {[%clk 0:02:04]} 16. Rc1 {[%clk 0:02:57]}  Bd5 {[%clk 0:01:52]} 17. Qc2 {[%clk 0:02:57]}  Rc8 {[%clk 0:01:45]} 18. Rfd1 {[%clk 0:02:57]}  Qc7 {[%clk 0:01:44]} 19. Qb2 {[%clk 0:02:54]}  Qb7 {[%clk 0:01:41]} 20. Ne1 {[%clk 0:02:48]}  Rfd8 {[%clk 0:01:36]} 21. f3 {[%clk 0:02:48]}  Nc5 {[%clk 0:01:24]} 22. e4 {[%clk 0:02:45]}  Bxe4 {[%clk 0:00:59]} 23. fxe4 {[%clk 0:02:43]}  Qxe4 {[%clk 0:00:59]} 24. Bf3 {[%clk 0:02:41]}  Qh4 {[%clk 0:00:54]} 25. Bf2 {[%clk 0:02:37]}  Qh6 {[%clk 0:00:51]} 26. Rxd8+ {[%clk 0:02:32]}  Rxd8 {[%clk 0:00:50]} 27. Rd1 {[%clk 0:02:33]}  Rxd1 {[%clk 0:00:41]} 28. Bxd1 {[%clk 0:02:33]}  Nfe4 {[%clk 0:00:37]} 29. Be3 {[%clk 0:02:30]}  Qg6 {[%clk 0:00:32]} 30. Bc2 {[%clk 0:02:27]}  f5 {[%clk 0:00:28]} 31. Nd3 {[%clk 0:02:24]}  Bf6 {[%clk 0:00:17]} 32. Qc1 {[%clk 0:02:16]}  Nc3 {[%clk 0:00:16]} 33. Qe1 {[%clk 0:02:13]}  N5e4 {[%clk 0:00:15]} 34. Nf4 {[%clk 0:02:09]}  Qf7 {[%clk 0:00:14]} 35. Ne2 {[%clk 0:02:04]}  Nxe2+ {[%clk 0:00:13]} 36. Qxe2 {[%clk 0:02:04]}  e5 {[%clk 0:00:10]} 37. Bxe4 {[%clk 0:02:02]}  fxe4 {[%clk 0:00:11]} 38. Qg4 {[%clk 0:02:02]}  h5 {[%clk 0:00:08]} 39. Qxe4 {[%clk 0:02:01]}  Qd7 {[%clk 0:00:08]} 40. Qa8+ {[%clk 0:01:58]}  Kh7 {[%clk 0:00:07]} 41. Qe4+ {[%clk 0:01:58]}  Kg8 {[%clk 0:00:07]} 42. Qc2 {[%clk 0:01:58]}  Qd5 {[%clk 0:00:06]} 43. Bxa7 {[%clk 0:01:55]}  e4 {[%clk 0:00:06]} 44. Be3 {[%clk 0:01:55]} 1-0


[Site "https://www.chess.com"]

[Event "Titled Tuesday Blitz December 06 Early 2022"]
[White "Bazarov, Konstantin"]
[Black "Kashtanov, Ruslan"]
[WhiteFideId "4137000"]
[BlackFideId "4124871"]
[WhiteElo "2228"]
[BlackElo "2276"]
[Result "1-0"]
[Round "08"]
[TimeControl "180+1"]
[Date "2022.12.07"]
[WhiteClock "0:00:15"]
[BlackClock "0:00:01"]

1. d4 {[%clk 0:03:00]}  Nf6 {[%clk 0:02:56]} 2. c4 {[%clk 0:03:00]}  g6 {[%clk 0:02:56]} 3. Nc3 {[%clk 0:03:00]}  Bg7 {[%clk 0:02:56]} 4. e4 {[%clk 0:02:59]}  d6 {[%clk 0:02:56]} 5. Nge2 {[%clk 0:02:59]}  a6 {[%clk 0:02:52]} 6. Ng3 {[%clk 0:02:56]}  O-O {[%clk 0:02:52]} 7. h4 {[%clk 0:02:55]}  c5 {[%clk 0:02:52]} 8. d5 {[%clk 0:02:55]}  e6 {[%clk 0:02:38]} 9. Be2 {[%clk 0:02:52]}  exd5 {[%clk 0:02:36]} 10. exd5 {[%clk 0:02:49]}  b5 {[%clk 0:02:02]} 11. cxb5 {[%clk 0:02:48]}  Re8 {[%clk 0:02:02]} 12. O-O {[%clk 0:02:43]}  Nbd7 {[%clk 0:01:43]} 13. h5 {[%clk 0:02:36]}  Ne5 {[%clk 0:01:37]} 14. h6 {[%clk 0:02:33]}  Bh8 {[%clk 0:01:35]} 15. Bg5 {[%clk 0:02:32]}  Qa5 {[%clk 0:01:27]} 16. a4 {[%clk 0:02:25]}  Qb4 {[%clk 0:01:15]} 17. Qc2 {[%clk 0:02:21]}  Bb7 {[%clk 0:00:59]} 18. Rfd1 {[%clk 0:02:18]}  Nc4 {[%clk 0:00:56]} 19. Rab1 {[%clk 0:02:07]}  Nb6 {[%clk 0:00:49]} 20. Bf3 {[%clk 0:01:56]}  axb5 {[%clk 0:00:46]} 21. Nxb5 {[%clk 0:01:53]}  Bxd5 {[%clk 0:00:40]} 22. Bxd5 {[%clk 0:01:34]}  Nfxd5 {[%clk 0:00:38]} 23. Nxd6 {[%clk 0:01:31]}  Re6 {[%clk 0:00:27]} 24. Nde4 {[%clk 0:01:10]}  c4 {[%clk 0:00:21]} 25. b3 {[%clk 0:01:02]}  cxb3 {[%clk 0:00:18]} 26. Rxb3 {[%clk 0:00:56]}  Qxa4 {[%clk 0:00:18]} 27. Qb1 {[%clk 0:00:53]}  Bd4 {[%clk 0:00:14]} 28. Rbd3 {[%clk 0:00:43]}  Be5 {[%clk 0:00:10]} 29. Nc5 {[%clk 0:00:37]}  Qc6 {[%clk 0:00:08]} 30. Nxe6 {[%clk 0:00:34]}  Qxe6 {[%clk 0:00:09]} 31. Re1 {[%clk 0:00:31]}  f6 {[%clk 0:00:10]} 32. Bc1 {[%clk 0:00:28]}  Nc4 {[%clk 0:00:09]} 33. Qc2 {[%clk 0:00:27]}  Ncb6 {[%clk 0:00:08]} 34. Bb2 {[%clk 0:00:25]}  Rc8 {[%clk 0:00:05]} 35. Qe2 {[%clk 0:00:23]}  Nc4 {[%clk 0:00:05]} 36. Bxe5 {[%clk 0:00:20]}  Nxe5 {[%clk 0:00:06]} 37. Rdd1 {[%clk 0:00:19]}  Nf4 {[%clk 0:00:05]} 38. Qe4 {[%clk 0:00:18]}  g5 {[%clk 0:00:05]} 39. Nf5 {[%clk 0:00:17]}  Rc4 {[%clk 0:00:04]} 40. Qa8+ {[%clk 0:00:16]}  Kf7 {[%clk 0:00:04]} 41. Nd6+ {[%clk 0:00:15]}  Kg6 {[%clk 0:00:04]} 42. Nxc4 {[%clk 0:00:15]}  Qxc4 {[%clk 0:00:05]} 43. Qe4+ {[%clk 0:00:14]}  Qxe4 {[%clk 0:00:04]} 44. Rxe4 {[%clk 0:00:15]}  Kxh6 {[%clk 0:00:05]} 45. g3 {[%clk 0:00:14]}  Nfg6 {[%clk 0:00:02]} 46. Kg2 {[%clk 0:00:14]}  Kg7 {[%clk 0:00:02]} 47. Rh1 {[%clk 0:00:15]}  g4 {[%clk 0:00:02]} 48. Ra4 {[%clk 0:00:15]}  f5 {[%clk 0:00:01]} 49. Ra7+ {[%clk 0:00:15]} 1-0


[Site "https://www.chess.com"]

[Event "Titled Tuesday Blitz December 06 Early 2022"]
[White "Berezin, Viktor"]
[Black "Stijve, Theo"]
[WhiteFideId "14107872"]
[BlackFideId "1331132"]
[WhiteElo "2310"]
[BlackElo "2256"]
[Result "1-0"]
[Round "08"]
[TimeControl "180+1"]
[Date "2022.12.07"]
[WhiteClock "0:01:10"]
[BlackClock "0:00:09"]

1. c4 {[%clk 0:02:59]}  c5 {[%clk 0:02:58]} 2. Nf3 {[%clk 0:02:58]}  Nc6 {[%clk 0:02:54]} 3. g3 {[%clk 0:02:58]}  g6 {[%clk 0:02:53]} 4. Bg2 {[%clk 0:02:58]}  Bg7 {[%clk 0:02:54]} 5. O-O {[%clk 0:02:59]}  e5 {[%clk 0:02:55]} 6. Nc3 {[%clk 0:02:58]}  Nge7 {[%clk 0:02:55]} 7. d3 {[%clk 0:02:59]}  d6 {[%clk 0:02:54]} 8. Rb1 {[%clk 0:02:59]}  Be6 {[%clk 0:02:54]} 9. a3 {[%clk 0:03:00]}  a5 {[%clk 0:02:53]} 10. Ne1 {[%clk 0:02:59]}  O-O {[%clk 0:02:50]} 11. Nc2 {[%clk 0:03:00]}  d5 {[%clk 0:02:47]} 12. cxd5 {[%clk 0:02:59]}  Nxd5 {[%clk 0:02:48]} 13. Bd2 {[%clk 0:02:59]}  b6 {[%clk 0:02:44]} 14. Ne3 {[%clk 0:02:55]}  Nxe3 {[%clk 0:02:40]} 15. Bxe3 {[%clk 0:02:54]}  Rc8 {[%clk 0:02:40]} 16. Rc1 {[%clk 0:02:41]}  Qd7 {[%clk 0:02:34]} 17. Qa4 {[%clk 0:02:40]}  Nd4 {[%clk 0:02:29]} 18. Qxd7 {[%clk 0:02:39]}  Bxd7 {[%clk 0:02:30]} 19. Rfe1 {[%clk 0:02:35]}  f5 {[%clk 0:02:24]} 20. Nd5 {[%clk 0:02:34]}  Rb8 {[%clk 0:02:16]} 21. Bxd4 {[%clk 0:02:28]}  exd4 {[%clk 0:02:15]} 22. b4 {[%clk 0:02:28]}  cxb4 {[%clk 0:02:09]} 23. axb4 {[%clk 0:02:29]}  a4 {[%clk 0:02:09]} 24. Rc7 {[%clk 0:02:25]}  Rfd8 {[%clk 0:01:50]} 25. Ra7 {[%clk 0:02:23]}  Kh8 {[%clk 0:01:39]} 26. Rc1 {[%clk 0:02:21]}  Be6 {[%clk 0:01:33]} 27. Nf4 {[%clk 0:02:03]}  Bb3 {[%clk 0:01:23]} 28. Rcc7 {[%clk 0:02:01]}  Rg8 {[%clk 0:01:21]} 29. Bd5 {[%clk 0:01:54]}  Bxd5 {[%clk 0:01:07]} 30. Nxd5 {[%clk 0:01:55]}  Rbc8 {[%clk 0:01:03]} 31. Rxc8 {[%clk 0:01:41]}  Rxc8 {[%clk 0:01:02]} 32. Nxb6 {[%clk 0:01:41]}  Rc1+ {[%clk 0:00:52]} 33. Kg2 {[%clk 0:01:41]}  Bf8 {[%clk 0:00:53]} 34. Rxa4 {[%clk 0:01:35]}  Rb1 {[%clk 0:00:49]} 35. Nd5 {[%clk 0:01:31]}  Kg7 {[%clk 0:00:50]} 36. Ra7+ {[%clk 0:01:30]}  Kh6 {[%clk 0:00:44]} 37. Rb7 {[%clk 0:01:29]}  g5 {[%clk 0:00:38]} 38. b5 {[%clk 0:01:25]}  g4 {[%clk 0:00:37]} 39. h4 {[%clk 0:01:24]}  Rb2 {[%clk 0:00:28]} 40. Nf4 {[%clk 0:01:13]}  Bd6 {[%clk 0:00:23]} 41. Rb6 {[%clk 0:01:13]}  Rxb5 {[%clk 0:00:12]} 42. Rxb5 {[%clk 0:01:11]}  Be7 {[%clk 0:00:09]} 43. Rxf5 {[%clk 0:01:10]}  Bd6 {[%clk 0:00:09]} 1-0


[Site "https://www.chess.com"]

[Event "Titled Tuesday Blitz December 06 Early 2022"]
[White "Bok, Benjamin"]
[Black "Xiong, Jeffery"]
[WhiteFideId "1017063"]
[BlackFideId "2047640"]
[WhiteElo "2658"]
[BlackElo "2726"]
[Result "0-1"]
[Round "08"]
[TimeControl "180+1"]
[Date "2022.12.06"]
[WhiteClock "0:00:14"]
[BlackClock "0:00:08"]

1. d4 {[%clk 0:03:00]}  d5 {[%clk 0:02:51]} 2. c4 {[%clk 0:02:56]}  dxc4 {[%clk 0:02:52]} 3. Nf3 {[%clk 0:02:56]}  a6 {[%clk 0:02:48]} 4. e3 {[%clk 0:02:55]}  Nf6 {[%clk 0:02:47]} 5. Bxc4 {[%clk 0:02:54]}  e6 {[%clk 0:02:48]} 6. O-O {[%clk 0:02:54]}  c5 {[%clk 0:02:47]} 7. b3 {[%clk 0:02:55]}  cxd4 {[%clk 0:02:36]} 8. Nxd4 {[%clk 0:02:54]}  Bd6 {[%clk 0:02:37]} 9. Bb2 {[%clk 0:02:54]}  O-O {[%clk 0:02:37]} 10. Nd2 {[%clk 0:02:53]}  e5 {[%clk 0:02:37]} 11. N4f3 {[%clk 0:02:34]}  Nc6 {[%clk 0:02:35]} 12. h3 {[%clk 0:02:32]}  h6 {[%clk 0:02:25]} 13. Rc1 {[%clk 0:02:31]}  Bf5 {[%clk 0:02:25]} 14. Be2 {[%clk 0:02:13]}  Re8 {[%clk 0:02:01]} 15. Nc4 {[%clk 0:02:11]}  Bc7 {[%clk 0:02:01]} 16. Qxd8 {[%clk 0:02:05]}  Raxd8 {[%clk 0:02:01]} 17. Rfd1 {[%clk 0:02:05]}  Nd5 {[%clk 0:01:58]} 18. a3 {[%clk 0:01:48]}  f6 {[%clk 0:01:54]} 19. Nh4 {[%clk 0:01:40]}  Be6 {[%clk 0:01:54]} 20. Bg4 {[%clk 0:01:05]}  Bf7 {[%clk 0:01:43]} 21. Nf5 {[%clk 0:01:03]}  h5 {[%clk 0:01:25]} 22. Bf3 {[%clk 0:01:03]}  e4 {[%clk 0:00:55]} 23. Be2 {[%clk 0:01:02]}  Rd7 {[%clk 0:00:45]} 24. g4 {[%clk 0:00:44]}  hxg4 {[%clk 0:00:43]} 25. Bxg4 {[%clk 0:00:44]}  Be6 {[%clk 0:00:41]} 26. Rd2 {[%clk 0:00:39]}  Kf7 {[%clk 0:00:37]} 27. Rcd1 {[%clk 0:00:38]}  Red8 {[%clk 0:00:37]} 28. Nd4 {[%clk 0:00:26]}  Bxg4 {[%clk 0:00:20]} 29. hxg4 {[%clk 0:00:26]}  Nxd4 {[%clk 0:00:21]} 30. Rxd4 {[%clk 0:00:27]}  b5 {[%clk 0:00:21]} 31. Nd2 {[%clk 0:00:26]}  Be5 {[%clk 0:00:21]} 32. Nxe4 {[%clk 0:00:19]}  Bxd4 {[%clk 0:00:21]} 33. Bxd4 {[%clk 0:00:20]}  Ne7 {[%clk 0:00:17]} 34. Rc1 {[%clk 0:00:18]}  Rc8 {[%clk 0:00:16]} 35. Nc5 {[%clk 0:00:18]}  Rd6 {[%clk 0:00:15]} 36. b4 {[%clk 0:00:16]}  Rcc6 {[%clk 0:00:15]} 37. Kg2 {[%clk 0:00:16]}  Nc8 {[%clk 0:00:11]} 38. Kf3 {[%clk 0:00:14]}  Nb6 {[%clk 0:00:11]} 39. Rh1 {[%clk 0:00:14]}  Nd7 {[%clk 0:00:11]} 40. Ne4 {[%clk 0:00:14]}  Rd5 {[%clk 0:00:11]} 41. Rh8 {[%clk 0:00:13]}  Ne5+ {[%clk 0:00:10]} 42. Bxe5 {[%clk 0:00:14]}  Rxe5 {[%clk 0:00:11]} 43. Ra8 {[%clk 0:00:14]}  Kg6 {[%clk 0:00:11]} 44. Ra7 {[%clk 0:00:14]}  Rd5 {[%clk 0:00:11]} 45. Ng3 {[%clk 0:00:14]}  Rcd6 {[%clk 0:00:07]} 46. Nf5 {[%clk 0:00:13]}  Rxf5+ {[%clk 0:00:07]} 47. gxf5+ {[%clk 0:00:14]}  Kxf5 {[%clk 0:00:08]} 48. Rxa6 {[%clk 0:00:14]}  Rxa6 {[%clk 0:00:08]} 0-1


[Site "https://www.chess.com"]

[Event "Titled Tuesday Blitz December 06 Early 2022"]
[White "Bon, Michael"]
[Black "Saravana, Krishnan P."]
[WhiteFideId "620696"]
[BlackFideId "5018382"]
[WhiteElo "2391"]
[BlackElo "2190"]
[Result "0-1"]
[Round "08"]
[TimeControl "180+1"]
[Date "2022.12.07"]
[WhiteClock "0:00:03"]
[BlackClock "0:00:25"]

1. e4 {[%clk 0:03:00]}  e5 {[%clk 0:02:06]} 2. Nf3 {[%clk 0:02:58]}  Nf6 {[%clk 0:02:05]} 3. Nc3 {[%clk 0:02:48]}  Bb4 {[%clk 0:02:03]} 4. Bc4 {[%clk 0:02:36]}  O-O {[%clk 0:02:01]} 5. O-O {[%clk 0:02:30]}  c6 {[%clk 0:01:54]} 6. Nxe5 {[%clk 0:02:23]}  d5 {[%clk 0:01:53]} 7. exd5 {[%clk 0:02:17]}  cxd5 {[%clk 0:01:51]} 8. Bd3 {[%clk 0:01:53]}  Re8 {[%clk 0:01:44]} 9. Re1 {[%clk 0:01:47]}  Bd6 {[%clk 0:01:39]} 10. Nf3 {[%clk 0:01:35]}  Rxe1+ {[%clk 0:01:30]} 11. Qxe1 {[%clk 0:01:34]}  Nc6 {[%clk 0:01:29]} 12. Nb5 {[%clk 0:01:18]}  Bc5 {[%clk 0:01:23]} 13. Bf1 {[%clk 0:01:02]}  d4 {[%clk 0:01:16]} 14. d3 {[%clk 0:00:57]}  a6 {[%clk 0:01:12]} 15. Na3 {[%clk 0:00:56]}  Bg4 {[%clk 0:01:09]} 16. Bf4 {[%clk 0:00:30]}  Bxf3 {[%clk 0:00:54]} 17. gxf3 {[%clk 0:00:31]}  Qd7 {[%clk 0:00:53]} 18. Nc4 {[%clk 0:00:28]}  Re8 {[%clk 0:00:50]} 19. Qd2 {[%clk 0:00:27]}  b5 {[%clk 0:00:48]} 20. Na3 {[%clk 0:00:19]}  Bb4 {[%clk 0:00:46]} 21. Qd1 {[%clk 0:00:15]}  Re1 {[%clk 0:00:45]} 22. Qxe1 {[%clk 0:00:16]}  Bxe1 {[%clk 0:00:45]} 23. Rxe1 {[%clk 0:00:16]}  h6 {[%clk 0:00:40]} 24. Nb1 {[%clk 0:00:14]}  Nb4 {[%clk 0:00:39]} 25. Re2 {[%clk 0:00:12]}  Nxa2 {[%clk 0:00:36]} 26. c3 {[%clk 0:00:10]}  dxc3 {[%clk 0:00:35]} 27. bxc3 {[%clk 0:00:11]}  Nd5 {[%clk 0:00:33]} 28. Be5 {[%clk 0:00:08]}  Nc1 {[%clk 0:00:33]} 29. Re1 {[%clk 0:00:05]}  Nb3 {[%clk 0:00:33]} 30. c4 {[%clk 0:00:05]}  bxc4 {[%clk 0:00:30]} 31. dxc4 {[%clk 0:00:05]}  Nb4 {[%clk 0:00:29]} 32. Nc3 {[%clk 0:00:05]}  Nd2 {[%clk 0:00:27]} 33. Bg2 {[%clk 0:00:04]}  Nd3 {[%clk 0:00:27]} 34. Rd1 {[%clk 0:00:03]}  Nxe5 {[%clk 0:00:27]} 35. Ne4 {[%clk 0:00:01]}  Ndxf3+ {[%clk 0:00:25]} 36. Bxf3 {[%clk 0:00:02]}  Nxf3+ {[%clk 0:00:25]} 37. Kg2 {[%clk 0:00:03]}  Qxd1 {[%clk 0:00:25]} 0-1


[Site "https://www.chess.com"]

[Event "Titled Tuesday Blitz December 06 Early 2022"]
[White "Boros, Denes"]
[Black "Topalov, Aleksandar"]
[WhiteFideId "722340"]
[BlackFideId "925659"]
[WhiteElo "2464"]
[BlackElo "2151"]
[Result "1-0"]
[Round "08"]
[TimeControl "180+1"]
[Date "2022.12.07"]
[WhiteClock "0:01:25"]
[BlackClock "0:00:06"]

1. d4 {[%clk 0:03:00]}  Nf6 {[%clk 0:02:59]} 2. Nc3 {[%clk 0:03:01]}  d5 {[%clk 0:02:57]} 3. Nf3 {[%clk 0:03:01]}  Bf5 {[%clk 0:02:57]} 4. Bg5 {[%clk 0:03:01]}  Nbd7 {[%clk 0:02:51]} 5. e3 {[%clk 0:02:59]}  c6 {[%clk 0:02:50]} 6. Ne5 {[%clk 0:02:59]}  Qa5 {[%clk 0:02:42]} 7. Bd3 {[%clk 0:02:49]}  Nxe5 {[%clk 0:02:19]} 8. dxe5 {[%clk 0:02:36]}  Ne4 {[%clk 0:02:19]} 9. Bxe4 {[%clk 0:02:32]}  Bxe4 {[%clk 0:02:15]} 10. e6 {[%clk 0:02:29]}  fxe6 {[%clk 0:01:56]} 11. O-O {[%clk 0:02:27]}  Bg6 {[%clk 0:01:56]} 12. Qg4 {[%clk 0:02:23]}  Bf5 {[%clk 0:01:46]} 13. Qg3 {[%clk 0:02:21]}  Bxc2 {[%clk 0:01:42]} 14. Qe5 {[%clk 0:02:12]}  Bf5 {[%clk 0:01:31]} 15. e4 {[%clk 0:02:11]}  Bg6 {[%clk 0:00:52]} 16. Rfe1 {[%clk 0:02:05]}  O-O-O {[%clk 0:00:39]} 17. Qxe6+ {[%clk 0:01:52]}  Kb8 {[%clk 0:00:33]} 18. exd5 {[%clk 0:01:48]}  cxd5 {[%clk 0:00:33]} 19. Rac1 {[%clk 0:01:44]}  Qb6 {[%clk 0:00:21]} 20. Bf4+ {[%clk 0:01:35]}  Ka8 {[%clk 0:00:20]} 21. Nxd5 {[%clk 0:01:25]}  Qxe6 {[%clk 0:00:06]} 22. Nc7+ {[%clk 0:01:25]} 1-0


[Site "https://www.chess.com"]